[Event "IV Elllobregat Open Chess Tmnt"]
[Site "Sant Boi de Llobregat, Spain"]
[Date "2023.12.01"]
[Round "2.44"]
[White "Citak, Selim"]
[Black "Puranik, Abhimanyu"]
[Result "0-1"]
[TimeControl "90min/40moves + 15min/end + 30sec from move 1"]
[WhiteFideId "6301819"]
[BlackFideId "5061245"]
[WhiteElo "2350"]
[BlackElo "2627"]

1. d4 {[%clk 01:30:47]} {[%emt 00:00:12]} d5 {[%clk 01:30:54]} {[%emt
00:00:06]} 2. c4 {[%clk 01:31:10]} {[%emt 00:00:06]} e6 {[%clk 01:31:21]}
{[%emt 00:00:04]} 3. Nf3 {[%clk 01:30:48]} {[%emt 00:00:51]} Nf6 {[%clk
01:31:45]} {[%emt 00:00:06]} 4. Nc3 {[%clk 01:31:00]} {[%emt 00:00:19]} Nbd7
{[%clk 01:31:59]} {[%emt 00:00:15]} 5. Bg5 {[%clk 01:31:05]} {[%emt 00:00:26]}
Bb4 {[%clk 01:31:31]} {[%emt 00:00:59]} 6. e3 {[%clk 01:31:04]} {[%emt
00:00:30]} c5 {[%clk 01:30:53]} {[%emt 00:01:07]} 7. cxd5 {[%clk 01:31:16]}
{[%emt 00:00:19]} exd5 {[%clk 01:30:55]} {[%emt 00:00:28]} 8. Bd3 {[%clk
01:31:08]} {[%emt 00:00:38]} Qa5 {[%clk 01:30:42]} {[%emt 00:00:42]} 9. O-O
{[%clk 01:28:22]} {[%emt 00:03:16]} c4 {[%clk 01:28:19]} {[%emt 00:02:54]} 10.
Bf5 {[%clk 01:26:15]} {[%emt 00:02:37]} O-O {[%clk 01:27:56]} {[%emt 00:00:53]}
11. Qc2 {[%clk 01:26:07]} {[%emt 00:00:38]} g6 {[%clk 01:28:16]} {[%emt
00:00:10]} 12. Bh3 {[%clk 01:25:05]} {[%emt 00:01:32]} Kg7 {[%clk 01:28:38]}
{[%emt 00:00:08]} 13. Nd2 {[%clk 01:21:25]} {[%emt 00:04:10]} Nb6 {[%clk
01:18:43]} {[%emt 00:10:25]} 14. Bxc8 {[%clk 01:20:49]} {[%emt 00:01:06]} Raxc8
{[%clk 01:19:07]} {[%emt 00:00:06]} 15. Bxf6+ {[%clk 01:08:57]} {[%emt
00:12:22]} Kxf6 {[%clk 01:19:33]} {[%emt 00:00:04]} 16. e4 {[%clk 01:04:59]}
{[%emt 00:04:28]} dxe4 {[%clk 01:14:45]} {[%emt 00:05:17]} 17. Qxe4 {[%clk
01:01:49]} {[%emt 00:03:40]} Kg7 {[%clk 01:10:14]} {[%emt 00:05:02]} 18. Qxb7
{[%clk 01:00:09]} {[%emt 00:02:10]} Bxc3 {[%clk 01:09:47]} {[%emt 00:00:57]} 19.
bxc3 {[%clk 01:00:25]} {[%emt 00:00:14]} Qxc3 {[%clk 01:07:51]} {[%emt
00:02:25]} 20. Qxa7 {[%clk 00:55:58]} {[%emt 00:04:57]} Qxd4 {[%clk 01:05:38]}
{[%emt 00:02:43]} 21. Nf3 {[%clk 00:51:49]} {[%emt 00:04:40]} Qc5 {[%clk
00:59:29]} {[%emt 00:06:39]} 22. Rfb1 {[%clk 00:42:33]} {[%emt 00:09:46]} c3
{[%clk 00:53:36]} {[%emt 00:06:23]} 23. Ne1 {[%clk 00:34:08]} {[%emt 00:08:55]}
Rc6 {[%clk 00:52:33]} {[%emt 00:01:33]} 24. Nc2 {[%clk 00:26:43]} {[%emt
00:07:55]} Ra8 {[%clk 00:47:37]} {[%emt 00:05:23]} 25. Qb7 {[%clk 00:26:51]}
{[%emt 00:00:24]} Rd8 {[%clk 00:47:21]} {[%emt 00:00:47]} 26. Rf1 {[%clk
00:19:18]} {[%emt 00:08:03]} Rd2 {[%clk 00:44:52]} {[%emt 00:02:58]} 27. Ne3
{[%clk 00:16:45]} {[%emt 00:03:04]} Na4 {[%clk 00:27:23]} {[%emt 00:17:57]} 28.
Qb3 {[%clk 00:14:48]} {[%emt 00:02:29]} Nb2 {[%clk 00:27:12]} {[%emt 00:00:41]}
29. a4 {[%clk 00:14:00]} {[%emt 00:01:17]} Nd3 {[%clk 00:26:09]} {[%emt
00:01:33]} 30. a5 {[%clk 00:04:22]} {[%emt 00:10:09]} c2 {[%clk 00:25:44]}
{[%emt 00:00:54]} 31. Nxc2 {[%clk 00:03:15]} {[%emt 00:01:38]} Qxc2 {[%clk
00:25:43]} {[%emt 00:00:32]} 32. Qxc2 {[%clk 00:02:44]} {[%emt 00:01:00]} Rcxc2
{[%clk 00:26:09]} {[%emt 00:00:04]} 33. a6 {[%clk 00:02:36]} {[%emt 00:00:38]}
Nxf2 {[%clk 00:24:33]} {[%emt 00:02:05]} 34. a7 {[%clk 00:00:34]} {[%emt
00:02:32]} Nh3+ {[%clk 00:24:44]} {[%emt 00:00:19]} 35. Kh1 {[%clk 00:00:58]}
{[%emt 00:00:07]} Rxg2 {[%clk 00:25:10]} {[%emt 00:00:04]} 0-1

[Event "IV Elllobregat Open Chess Tmnt"]
[Site "Sant Boi de Llobregat, Spain"]
[Date "2023.12.01"]
[Round "2.45"]
[White "Goh, Zi Han"]
[Black "Sanal, Vahap"]
[Result "1/2-1/2"]
[TimeControl "90min/40moves + 15min/end + 30sec from move 1"]
[WhiteFideId "5819156"]
[BlackFideId "6300545"]
[WhiteElo "2333"]
[BlackElo "2608"]

1. d4 {[%clk 01:30:03]} {[%emt 00:00:57]} d6 {[%clk 01:30:52]} {[%emt
00:00:08]} 2. c4 {[%clk 01:29:50]} {[%emt 00:00:43]} e5 {[%clk 01:31:06]}
{[%emt 00:00:16]} 3. d5 {[%clk 01:29:30]} {[%emt 00:00:50]} g6 {[%clk
01:29:54]} {[%emt 00:01:41]} 4. Nc3 {[%clk 01:28:20]} {[%emt 00:01:42]} a5
{[%clk 01:29:14]} {[%emt 00:01:09]} 5. h4 {[%clk 01:16:38]} {[%emt 00:12:13]}
h5 {[%clk 01:28:46]} {[%emt 00:00:57]} 6. Nf3 {[%clk 01:16:33]} {[%emt
00:00:35]} Na6 {[%clk 01:28:32]} {[%emt 00:00:45]} 7. a3 {[%clk 01:14:31]}
{[%emt 00:02:32]} Nc5 {[%clk 01:25:19]} {[%emt 00:03:43]} 8. Be3 {[%clk
01:13:06]} {[%emt 00:01:55]} Bg7 {[%clk 01:25:15]} {[%emt 00:00:32]} 9. b4
{[%clk 01:09:41]} {[%emt 00:03:56]} axb4 {[%clk 01:24:19]} {[%emt 00:01:27]} 10.
axb4 {[%clk 01:10:05]} {[%emt 00:00:06]} Rxa1 {[%clk 01:24:44]} {[%emt
00:00:05]} 11. Qxa1 {[%clk 01:10:29]} {[%emt 00:00:05]} Na6 {[%clk 01:24:26]}
{[%emt 00:00:48]} 12. Bg5 {[%clk 01:05:09]} {[%emt 00:05:51]} f6 {[%clk
01:22:28]} {[%emt 00:02:27]} 13. Bd2 {[%clk 01:04:16]} {[%emt 00:01:24]} f5
{[%clk 01:09:13]} {[%emt 00:13:45]} 14. e4 {[%clk 01:01:52]} {[%emt 00:02:53]}
Nf6 {[%clk 01:08:23]} {[%emt 00:01:19]} 15. Ng5 {[%clk 00:53:03]} {[%emt
00:09:19]} O-O {[%clk 01:08:37]} {[%emt 00:00:16]} 16. Qb1 {[%clk 00:50:28]}
{[%emt 00:03:06]} Nh7 {[%clk 01:07:36]} {[%emt 00:01:31]} 17. exf5 {[%clk
00:45:26]} {[%emt 00:05:32]} gxf5 {[%clk 00:54:45]} {[%emt 00:13:20]} 18. Nxh7
{[%clk 00:41:15]} {[%emt 00:04:42]} Kxh7 {[%clk 00:55:12]} {[%emt 00:00:03]} 19.
Ne2 {[%clk 00:40:40]} {[%emt 00:01:05]} c5 {[%clk 00:44:27]} {[%emt 00:11:15]}
20. b5 {[%clk 00:39:03]} {[%emt 00:02:08]} Nb4 {[%clk 00:43:44]} {[%emt
00:01:12]} 21. Ng3 {[%clk 00:37:07]} {[%emt 00:02:26]} Bh6 {[%clk 00:43:14]}
{[%emt 00:01:01]} 22. Bxh6 {[%clk 00:28:39]} {[%emt 00:08:58]} Kxh6 {[%clk
00:43:03]} {[%emt 00:00:40]} 23. Be2 {[%clk 00:27:52]} {[%emt 00:01:17]} f4
{[%clk 00:37:19]} {[%emt 00:06:13]} 24. Ne4 {[%clk 00:28:10]} {[%emt 00:00:13]}
Bf5 {[%clk 00:36:24]} {[%emt 00:01:24]} 25. Bf3 {[%clk 00:27:41]} {[%emt
00:01:00]} Qe7 {[%clk 00:31:25]} {[%emt 00:05:28]} 26. g3 {[%clk 00:24:44]}
{[%emt 00:03:28]} Ra8 {[%clk 00:24:30]} {[%emt 00:07:25]} 27. O-O {[%clk
00:23:24]} {[%emt 00:01:50]} Qh7 {[%clk 00:23:59]} {[%emt 00:01:00]} 28. Re1
{[%clk 00:20:03]} {[%emt 00:03:51]} Qg6 {[%clk 00:23:53]} {[%emt 00:00:35]} 29.
Qb3 {[%clk 00:17:34]} {[%emt 00:03:01]} Kg7 {[%clk 00:16:25]} {[%emt 00:07:58]}
30. Kh1 {[%clk 00:14:50]} {[%emt 00:03:14]} Bxe4 {[%clk 00:12:47]} {[%emt
00:04:08]} 31. Bxe4 {[%clk 00:15:14]} {[%emt 00:00:06]} Qg4 {[%clk 00:13:07]}
{[%emt 00:00:09]} 32. Kg2 {[%clk 00:12:38]} {[%emt 00:03:06]} Ra2 {[%clk
00:13:08]} {[%emt 00:00:30]} 33. Qf3 {[%clk 00:11:44]} {[%emt 00:01:24]} Nc2
{[%clk 00:11:39]} {[%emt 00:01:58]} 34. Bxc2 {[%clk 00:09:57]} {[%emt
00:02:17]} Rxc2 {[%clk 00:11:44]} {[%emt 00:00:26]} 35. Qxg4+ {[%clk 00:09:37]}
{[%emt 00:00:50]} hxg4 {[%clk 00:12:12]} {[%emt 00:00:02]} 36. gxf4 {[%clk
00:09:27]} {[%emt 00:00:40]} exf4 {[%clk 00:12:40]} {[%emt 00:00:02]} 37. Re4
{[%clk 00:08:26]} {[%emt 00:01:31]} g3 {[%clk 00:13:04]} {[%emt 00:00:06]} 38.
Rxf4 {[%clk 00:08:44]} {[%emt 00:00:12]} gxf2 {[%clk 00:13:32]} {[%emt
00:00:02]} 39. h5 {[%clk 00:05:51]} {[%emt 00:03:24]} Kh6 {[%clk 00:13:47]}
{[%emt 00:00:13]} 40. Rf6+ {[%clk 00:20:40]} {[%emt 00:00:42]} Kxh5 {[%clk
00:29:15]} {[%emt 00:00:02]} 41. Rxd6 {[%clk 00:20:59]} {[%emt 00:00:11]} Rxc4
{[%clk 00:29:42]} {[%emt 00:00:02]} 42. Kxf2 {[%clk 00:18:15]} {[%emt
00:03:15]} Kg5 {[%clk 00:29:32]} {[%emt 00:00:39]} 43. Ke3 {[%clk 00:17:34]}
{[%emt 00:01:11]} 1/2-1/2

[Event "IV Elllobregat Open Chess Tmnt"]
[Site "Sant Boi de Llobregat, Spain"]
[Date "2023.12.01"]
[Round "2.46"]
[White "Pultinevicius, Paulius"]
[Black "Palczert, Matyas"]
[Result "1-0"]
[TimeControl "90min/40moves + 15min/end + 30sec from move 1"]
[WhiteFideId "12809390"]
[BlackFideId "784958"]
[WhiteElo "2589"]
[BlackElo "2349"]

1. d4 {[%clk 01:30:58]} {[%emt 00:00:01]} d5 {[%clk 01:30:52]} {[%emt
00:00:07]} 2. c4 {[%clk 01:29:53]} {[%emt 00:01:35]} e6 {[%clk 01:31:06]}
{[%emt 00:00:16]} 3. Nc3 {[%clk 01:30:04]} {[%emt 00:00:19]} h6 {[%clk
01:31:02]} {[%emt 00:00:35]} 4. Nf3 {[%clk 01:29:17]} {[%emt 00:01:16]} Nf6
{[%clk 01:30:35]} {[%emt 00:00:58]} 5. e3 {[%clk 01:28:55]} {[%emt 00:00:52]}
Bd6 {[%clk 01:23:53]} {[%emt 00:07:12]} 6. Qc2 {[%clk 01:28:56]} {[%emt
00:00:29]} O-O {[%clk 01:21:07]} {[%emt 00:03:15]} 7. Be2 {[%clk 01:27:38]}
{[%emt 00:01:49]} b6 {[%clk 01:19:22]} {[%emt 00:02:15]} 8. O-O {[%clk
01:28:00]} {[%emt 00:00:08]} a6 {[%clk 01:16:44]} {[%emt 00:03:08]} 9. e4
{[%clk 01:28:20]} {[%emt 00:00:10]} dxe4 {[%clk 01:15:24]} {[%emt 00:01:49]} 10.
Nxe4 {[%clk 01:28:33]} {[%emt 00:00:18]} Bb7 {[%clk 01:14:21]} {[%emt
00:01:33]} 11. Nxd6 {[%clk 01:28:53]} {[%emt 00:00:10]} cxd6 {[%clk 01:13:07]}
{[%emt 00:01:43]} 12. Bf4 {[%clk 01:27:55]} {[%emt 00:01:29]} Nc6 {[%clk
01:07:09]} {[%emt 00:06:28]} 13. Rad1 {[%clk 01:27:58]} {[%emt 00:00:27]} Rc8
{[%clk 01:05:18]} {[%emt 00:02:20]} 14. Qb1 {[%clk 01:23:09]} {[%emt 00:05:19]}
d5 {[%clk 00:55:05]} {[%emt 00:10:44]} 15. b3 {[%clk 01:16:45]} {[%emt
00:06:54]} Ne4 {[%clk 00:52:38]} {[%emt 00:02:56]} 16. Qb2 {[%clk 01:17:11]}
{[%emt 00:00:05]} Qf6 {[%clk 00:51:24]} {[%emt 00:01:44]} 17. Be3 {[%clk
01:16:16]} {[%emt 00:01:24]} Rfd8 {[%clk 00:50:46]} {[%emt 00:01:08]} 18. Ne5
{[%clk 01:15:58]} {[%emt 00:00:48]} Nd6 {[%clk 00:42:49]} {[%emt 00:08:28]} 19.
cxd5 {[%clk 01:12:49]} {[%emt 00:03:40]} exd5 {[%clk 00:37:08]} {[%emt
00:06:10]} 20. Bg4 {[%clk 01:12:59]} {[%emt 00:00:20]} Nf5 {[%clk 00:33:41]}
{[%emt 00:03:57]} 21. Qb1 {[%clk 01:13:14]} {[%emt 00:00:14]} g6 {[%clk
00:30:03]} {[%emt 00:04:08]} 22. Rfe1 {[%clk 01:12:48]} {[%emt 00:00:57]} h5
{[%clk 00:27:54]} {[%emt 00:02:38]} 23. Bh3 {[%clk 01:09:29]} {[%emt 00:03:49]}
Nce7 {[%clk 00:20:44]} {[%emt 00:07:40]} 24. Bc1 {[%clk 01:06:25]} {[%emt
00:03:34]} Rc3 {[%clk 00:14:41]} {[%emt 00:06:33]} 25. Rd3 {[%clk 01:06:44]}
{[%emt 00:00:12]} Rdc8 {[%clk 00:13:25]} {[%emt 00:01:46]} 26. Ba3 {[%clk
00:59:11]} {[%emt 00:08:03]} R8c7 {[%clk 00:10:13]} {[%emt 00:03:42]} 27. Nd7
{[%clk 00:55:13]} {[%emt 00:04:27]} Qg5 {[%clk 00:09:31]} {[%emt 00:01:12]} 28.
Nxb6 {[%clk 00:49:21]} {[%emt 00:06:22]} Rc2 {[%clk 00:06:29]} {[%emt
00:03:32]} 29. Bc5 {[%clk 00:48:42]} {[%emt 00:01:10]} R2xc5 {[%clk 00:05:24]}
{[%emt 00:01:35]} 30. dxc5 {[%clk 00:49:04]} {[%emt 00:00:08]} Rxc5 {[%clk
00:05:24]} {[%emt 00:00:30]} 31. Qb2 {[%clk 00:46:12]} {[%emt 00:03:22]} Nh4
{[%clk 00:04:17]} {[%emt 00:01:36]} 32. Nd7 {[%clk 00:45:03]} {[%emt 00:01:39]}
Rc6 {[%clk 00:03:30]} {[%emt 00:01:17]} 33. Rg3 {[%clk 00:44:21]} {[%emt
00:01:13]} Qf4 {[%clk 00:03:41]} {[%emt 00:00:18]} 34. Qa3 {[%clk 00:44:43]}
{[%emt 00:00:08]} Nef5 {[%clk 00:02:28]} {[%emt 00:01:43]} 35. Qf8+ {[%clk
00:44:58]} {[%emt 00:00:16]} Kh7 {[%clk 00:02:50]} {[%emt 00:00:08]} 36. Qxf7+
{[%clk 00:45:22]} {[%emt 00:00:05]} Kh6 {[%clk 00:03:11]} {[%emt 00:00:10]} 37.
Qf8+ {[%clk 00:45:47]} {[%emt 00:00:05]} 1-0

[Event "IV Elllobregat Open Chess Tmnt"]
[Site "Sant Boi de Llobregat, Spain"]
[Date "2023.12.01"]
[Round "2.47"]
[White "Rey Martinez, Jaime"]
[Black "Peralta, Fernando"]
[Result "1/2-1/2"]
[TimeControl "90min/40moves + 15min/end + 30sec from move 1"]
[WhiteFideId "54549264"]
[BlackFideId "105309"]
[WhiteElo "2344"]
[BlackElo "2580"]

1. e4 {[%clk 01:30:49]} {[%emt 00:00:10]} c6 {[%clk 01:30:54]} {[%emt
00:00:07]} 2. Nf3 {[%clk 01:30:24]} {[%emt 00:00:54]} d5 {[%clk 01:31:14]}
{[%emt 00:00:10]} 3. Nc3 {[%clk 01:30:33]} {[%emt 00:00:22]} dxe4 {[%clk
01:30:58]} {[%emt 00:00:47]} 4. Nxe4 {[%clk 01:30:56]} {[%emt 00:00:06]} Nf6
{[%clk 01:31:25]} {[%emt 00:00:03]} 5. Qe2 {[%clk 01:30:37]} {[%emt 00:00:49]}
Na6 {[%clk 01:29:44]} {[%emt 00:02:11]} 6. d4 {[%clk 01:28:41]} {[%emt
00:02:26]} Qd5 {[%clk 01:27:24]} {[%emt 00:02:50]} 7. Nc3 {[%clk 01:26:22]}
{[%emt 00:02:49]} Qa5 {[%clk 01:27:44]} {[%emt 00:00:10]} 8. Ne5 {[%clk
01:21:36]} {[%emt 00:05:16]} Nb4 {[%clk 01:22:39]} {[%emt 00:05:35]} 9. Nc4
{[%clk 01:15:39]} {[%emt 00:06:27]} Qc7 {[%clk 01:14:34]} {[%emt 00:08:34]} 10.
a3 {[%clk 01:12:30]} {[%emt 00:03:40]} Nbd5 {[%clk 01:14:42]} {[%emt 00:00:21]}
11. Nxd5 {[%clk 01:12:51]} {[%emt 00:00:09]} Nxd5 {[%clk 01:14:11]} {[%emt
00:01:01]} 12. g3 {[%clk 01:10:27]} {[%emt 00:02:54]} g6 {[%clk 01:11:43]}
{[%emt 00:02:59]} 13. Qe5 {[%clk 01:02:38]} {[%emt 00:08:18]} Qxe5+ {[%clk
01:10:06]} {[%emt 00:02:07]} 14. Nxe5 {[%clk 01:02:59]} {[%emt 00:00:10]} Bg7
{[%clk 01:08:21]} {[%emt 00:02:15]} 15. Bg2 {[%clk 01:02:06]} {[%emt 00:01:22]}
O-O {[%clk 01:03:42]} {[%emt 00:05:09]} 16. O-O {[%clk 01:00:23]} {[%emt
00:02:13]} Bf5 {[%clk 01:02:18]} {[%emt 00:01:54]} 17. c3 {[%clk 00:59:55]}
{[%emt 00:00:58]} Rfd8 {[%clk 00:58:42]} {[%emt 00:04:06]} 18. Re1 {[%clk
00:58:19]} {[%emt 00:02:06]} a5 {[%clk 00:54:56]} {[%emt 00:04:16]} 19. Be4
{[%clk 00:52:39]} {[%emt 00:06:10]} Bxe4 {[%clk 00:47:49]} {[%emt 00:07:38]} 20.
Rxe4 {[%clk 00:52:56]} {[%emt 00:00:13]} a4 {[%clk 00:48:11]} {[%emt 00:00:08]}
21. Nd3 {[%clk 00:51:52]} {[%emt 00:01:34]} Bf6 {[%clk 00:43:25]} {[%emt
00:05:15]} 22. Bf4 {[%clk 00:49:19]} {[%emt 00:03:04]} Nxf4 {[%clk 00:36:48]}
{[%emt 00:07:07]} 23. Nxf4 {[%clk 00:44:28]} {[%emt 00:05:21]} b6 {[%clk
00:35:45]} {[%emt 00:01:33]} 24. Rae1 {[%clk 00:43:22]} {[%emt 00:01:36]} e6
{[%clk 00:23:09]} {[%emt 00:13:06]} 25. R1e2 {[%clk 00:42:36]} {[%emt
00:01:16]} Be7 {[%clk 00:22:19]} {[%emt 00:01:20]} 26. Nd3 {[%clk 00:40:05]}
{[%emt 00:03:00]} Rac8 {[%clk 00:18:51]} {[%emt 00:03:57]} 27. Ne5 {[%clk
00:36:54]} {[%emt 00:03:42]} Rc7 {[%clk 00:12:21]} {[%emt 00:07:01]} 28. Kf1
{[%clk 00:36:06]} {[%emt 00:01:18]} b5 {[%clk 00:12:26]} {[%emt 00:00:25]} 29.
Nd3 {[%clk 00:34:16]} {[%emt 00:02:20]} c5 {[%clk 00:11:41]} {[%emt 00:01:14]}
30. Nxc5 {[%clk 00:34:36]} {[%emt 00:00:10]} Bxc5 {[%clk 00:12:08]} {[%emt
00:00:04]} 31. dxc5 {[%clk 00:35:03]} {[%emt 00:00:04]} Rxc5 {[%clk 00:12:25]}
{[%emt 00:00:12]} 32. Re5 {[%clk 00:34:54]} {[%emt 00:00:38]} Rd1+ {[%clk
00:11:59]} {[%emt 00:00:56]} 33. Kg2 {[%clk 00:34:57]} {[%emt 00:00:28]} Rdd5
{[%clk 00:09:21]} {[%emt 00:03:08]} 34. Rxd5 {[%clk 00:35:21]} {[%emt
00:00:06]} Rxd5 {[%clk 00:09:48]} {[%emt 00:00:02]} 35. Re4 {[%clk 00:35:36]}
{[%emt 00:00:16]} e5 {[%clk 00:03:24]} {[%emt 00:06:54]} 36. c4 {[%clk
00:33:54]} {[%emt 00:02:12]} bxc4 {[%clk 00:03:45]} {[%emt 00:00:09]} 37. Rxc4
{[%clk 00:34:21]} {[%emt 00:00:03]} Rd2 {[%clk 00:03:56]} {[%emt 00:00:18]} 38.
Rxa4 {[%clk 00:34:10]} {[%emt 00:00:42]} Rxb2 {[%clk 00:04:21]} {[%emt
00:00:04]} 39. g4 {[%clk 00:31:22]} {[%emt 00:03:19]} Kg7 {[%clk 00:03:46]}
{[%emt 00:01:04]} 40. g5 {[%clk 00:45:47]} {[%emt 00:01:05]} h6 {[%clk
00:18:49]} {[%emt 00:00:27]} 41. h4 {[%clk 00:45:42]} {[%emt 00:00:35]} hxg5
{[%clk 00:16:39]} {[%emt 00:02:40]} 42. hxg5 {[%clk 00:46:04]} {[%emt
00:00:09]} Kf8 {[%clk 00:16:57]} {[%emt 00:00:11]} 43. Ra8+ {[%clk 00:43:30]}
{[%emt 00:03:04]} Ke7 {[%clk 00:17:02]} {[%emt 00:00:26]} 44. Ra7+ {[%clk
00:43:47]} {[%emt 00:00:14]} Ke6 {[%clk 00:17:25]} {[%emt 00:00:06]} 45. Ra6+
{[%clk 00:44:07]} {[%emt 00:00:10]} Kf5 {[%clk 00:17:10]} {[%emt 00:00:14]}
1/2-1/2

[Event "IV Elllobregat Open Chess Tmnt"]
[Site "Sant Boi de Llobregat, Spain"]
[Date "2023.12.01"]
[Round "2.48"]
[White "Gombocz, Ferenc Jr."]
[Black "Sosa, Tomas"]
[Result "1/2-1/2"]
[TimeControl "90min/40moves + 15min/end + 30sec from move 1"]
[WhiteFideId "775029"]
[BlackFideId "121576"]
[WhiteElo "2319"]
[BlackElo "2558"]

1. c4 {[%clk 01:30:56]} {[%emt 00:00:03]} g6 {[%clk 01:29:08]} {[%emt
00:01:52]} 2. g3 {[%clk 01:31:03]} {[%emt 00:00:23]} Bg7 {[%clk 01:29:31]}
{[%emt 00:00:07]} 3. Bg2 {[%clk 01:31:22]} {[%emt 00:00:11]} e5 {[%clk
01:29:10]} {[%emt 00:00:51]} 4. Nc3 {[%clk 01:27:12]} {[%emt 00:04:40]} f5
{[%clk 01:28:51]} {[%emt 00:00:49]} 5. d3 {[%clk 01:27:17]} {[%emt 00:00:25]}
d6 {[%clk 01:28:36]} {[%emt 00:00:45]} 6. e4 {[%clk 01:26:53]} {[%emt
00:00:52]} Nf6 {[%clk 01:28:23]} {[%emt 00:00:45]} 7. Nge2 {[%clk 01:26:36]}
{[%emt 00:00:46]} O-O {[%clk 01:28:23]} {[%emt 00:00:30]} 8. O-O {[%clk
01:26:28]} {[%emt 00:00:39]} f4 {[%clk 01:28:27]} {[%emt 00:00:26]} 9. gxf4
{[%clk 01:23:57]} {[%emt 00:03:00]} Nh5 {[%clk 01:28:40]} {[%emt 00:00:18]} 10.
f5 {[%clk 01:02:26]} {[%emt 00:22:01]} Nc6 {[%clk 01:28:51]} {[%emt 00:00:19]}
11. Nd5 {[%clk 00:58:50]} {[%emt 00:04:06]} gxf5 {[%clk 01:29:00]} {[%emt
00:00:21]} 12. exf5 {[%clk 00:57:38]} {[%emt 00:01:42]} Bxf5 {[%clk 01:28:59]}
{[%emt 00:00:31]} 13. Ng3 {[%clk 00:57:06]} {[%emt 00:01:02]} Nxg3 {[%clk
01:28:52]} {[%emt 00:00:37]} 14. fxg3 {[%clk 00:57:05]} {[%emt 00:00:30]} Qd7
{[%clk 01:17:48]} {[%emt 00:11:35]} 15. Be3 {[%clk 00:55:28]} {[%emt 00:02:06]}
Rae8 {[%clk 01:17:00]} {[%emt 00:01:18]} 16. Qd2 {[%clk 00:48:32]} {[%emt
00:07:26]} Nd4 {[%clk 01:07:42]} {[%emt 00:09:49]} 1/2-1/2

[Event "IV Elllobregat Open Chess Tmnt"]
[Site "Sant Boi de Llobregat, Spain"]
[Date "2023.12.01"]
[Round "2.49"]
[White "Yordanov, Lachezar"]
[Black "Jacobson, Brandon"]
[Result "0-1"]
[TimeControl "90min/40moves + 15min/end + 30sec from move 1"]
[WhiteFideId "2918927"]
[BlackFideId "30901561"]
[WhiteElo "2323"]
[BlackElo "2538"]

1. Nf3 {[%clk 01:30:57]} {[%emt 00:00:02]} d5 {[%clk 01:22:38]} {[%emt
00:08:22]} 2. d4 {[%clk 01:31:14]} {[%emt 00:00:13]} Nf6 {[%clk 01:22:55]}
{[%emt 00:00:13]} 3. Bf4 {[%clk 01:31:36]} {[%emt 00:00:08]} c5 {[%clk
01:22:37]} {[%emt 00:00:48]} 4. e3 {[%clk 01:31:59]} {[%emt 00:00:07]} Nc6
{[%clk 01:22:31]} {[%emt 00:00:36]} 5. Nbd2 {[%clk 01:32:13]} {[%emt 00:00:17]}
e6 {[%clk 01:22:13]} {[%emt 00:00:47]} 6. c3 {[%clk 01:32:32]} {[%emt
00:00:11]} Be7 {[%clk 01:22:14]} {[%emt 00:00:29]} 7. Bd3 {[%clk 01:31:35]}
{[%emt 00:01:28]} Nh5 {[%clk 01:21:15]} {[%emt 00:01:28]} 8. Bg3 {[%clk
01:31:43]} {[%emt 00:00:23]} Bd7 {[%clk 01:13:32]} {[%emt 00:08:14]} 9. Qe2
{[%clk 01:26:11]} {[%emt 00:06:02]} Qb6 {[%clk 01:02:31]} {[%emt 00:11:31]} 10.
Rb1 {[%clk 01:23:29]} {[%emt 00:03:11]} Nxg3 {[%clk 01:01:54]} {[%emt
00:01:06]} 11. hxg3 {[%clk 01:23:53]} {[%emt 00:00:07]} h5 {[%clk 01:02:15]}
{[%emt 00:00:09]} 12. dxc5 {[%clk 01:13:35]} {[%emt 00:10:48]} Qxc5 {[%clk
01:01:16]} {[%emt 00:01:29]} 13. e4 {[%clk 01:10:42]} {[%emt 00:03:23]} O-O-O
{[%clk 00:49:56]} {[%emt 00:11:49]} 14. O-O {[%clk 01:03:49]} {[%emt 00:07:24]}
Kb8 {[%clk 00:30:01]} {[%emt 00:20:26]} 15. Rfc1 {[%clk 00:58:04]} {[%emt
00:06:14]} g5 {[%clk 00:26:21]} {[%emt 00:04:10]} 16. b4 {[%clk 00:58:03]}
{[%emt 00:00:31]} Qd6 {[%clk 00:26:39]} {[%emt 00:00:12]} 17. e5 {[%clk
00:54:19]} {[%emt 00:04:14]} Qc7 {[%clk 00:27:04]} {[%emt 00:00:05]} 18. b5
{[%clk 00:54:23]} {[%emt 00:00:26]} Na5 {[%clk 00:27:29]} {[%emt 00:00:05]} 19.
c4 {[%clk 00:49:05]} {[%emt 00:05:48]} Qb6 {[%clk 00:21:19]} {[%emt 00:06:40]}
20. cxd5 {[%clk 00:46:16]} {[%emt 00:03:20]} exd5 {[%clk 00:21:43]} {[%emt
00:00:06]} 21. Rc6 {[%clk 00:36:18]} {[%emt 00:10:28]} Nxc6 {[%clk 00:20:36]}
{[%emt 00:01:36]} 22. bxc6 {[%clk 00:36:43]} {[%emt 00:00:06]} Qxc6 {[%clk
00:21:02]} {[%emt 00:00:03]} 23. Ba6 {[%clk 00:35:49]} {[%emt 00:01:24]} Bc8
{[%clk 00:19:35]} {[%emt 00:01:57]} 24. Nd4 {[%clk 00:36:13]} {[%emt 00:00:06]}
Qa4 {[%clk 00:18:33]} {[%emt 00:01:32]} 25. Qd3 {[%clk 00:35:17]} {[%emt
00:01:27]} Bc5 {[%clk 00:17:09]} {[%emt 00:01:54]} 26. N2b3 {[%clk 00:34:30]}
{[%emt 00:01:16]} Bb6 {[%clk 00:17:15]} {[%emt 00:00:24]} 27. Bb5 {[%clk
00:34:52]} {[%emt 00:00:08]} Qa3 {[%clk 00:17:33]} {[%emt 00:00:11]} 28. Qd2
{[%clk 00:34:12]} {[%emt 00:01:11]} h4 {[%clk 00:16:04]} {[%emt 00:01:58]} 29.
Qxg5 {[%clk 00:34:13]} {[%emt 00:00:30]} Rdg8 {[%clk 00:15:01]} {[%emt
00:01:33]} 30. Qf4 {[%clk 00:34:33]} {[%emt 00:00:10]} hxg3 {[%clk 00:14:36]}
{[%emt 00:00:55]} 31. f3 {[%clk 00:33:14]} {[%emt 00:01:48]} Qxa2 {[%clk
00:14:48]} {[%emt 00:00:18]} 32. Nd2 {[%clk 00:33:10]} {[%emt 00:00:35]} Rh4
{[%clk 00:13:42]} {[%emt 00:01:35]} 0-1